Workbook

Sheet F1-Manager (invulblad)
B1: www.haemerke.nl presents "Formule 1 Manager 2025"
B3: Stuur het compleet ingevulde formulier uiterlijk 13 maart 2025 (23.59u) naar aanmelding@haemerke.nl
B4: Teamnaam: | K4: =SUM(D11:D30) -> 0 | L4: =IF(K4>2,"Je hebt TEVEEL coureurs geselecteerd!!",(IF(K4=2,"Je hebt je coureurs samengesteld",(IF(K4=1, "Je MOET nog een coureur kiezen",(IF(K4=0,"Kies je coureurs, minimaal en maximaal 2"))))))) -> Kies je coureurs, minimaal en maximaal 2 | T4: =80000000-SUM(H11:H30,P11:P20,X11:X20) -> € 80,000,000
K5: =SUM(L11:L20) -> 0 | L5: =IF(K5=1,"Je hebt je chassis samengesteld",(IF(K5>1,"Je hebt teveel chassis geselecteerd!!","Chassis aantal"))) -> Chassis aantal
B6: Naam Teammanager: | K6: =SUM(T11:T20) -> 0 | L6: =IF(K6=1,"Je hebt je motor samengesteld",(IF(K6>1,"Je hebt teveel motoren geselecteerd!!","Motor aantal"))) -> Motor aantal
K7: Denk eraan: Van elk Formule 1 team mag u slechts één onderdeel voor uw team kiezen. | T7: =IF(T4<80000,"Je bent over het budget heen!!","Budget") -> Budget
T8: Zie voor info www.haemerke.nl
B10: Coureurs | J10: Chassis | R10: Motor
B11: =B56 -> 1 | C11: =C56 -> Max Verstappen | D11: 0 | E11: =IF(OR(L11,T11,D12),"X",1) -> 1 | F11: =IF(E11=1,F56,0) -> € 42,000,000 | H11: =IF(D11,F11,0) -> € 0 | J11: =J56 -> 1/30 | K11: =K56 -> RED BULL _ Chassis | L11: 0 | M11: =IF(OR(D11,D12,T11),"X",1) -> 1 | N11: =IF(M11=1,N56,0) -> € 22,000,000 | P11: =IF(L11,N11,0) -> € 0 | R11: =J72 -> 1/30 | S11: =K72 -> RED BULL _ Motor | T11: 0 | U11: =IF(OR(D11,D12,L11),"X",1) -> 1 | V11: =IF(U11=1,N72,0) -> € 22,000,000 | X11: =IF(T11,V11,0) -> € 0
B12: =B57 -> 30 | C12: Liam Lawson | D12: 0 | E12: =IF(OR(L11,T11,D11),"X",1) -> 1 | F12: € 25,000,000 | H12: =IF(D12,F12,0) -> € 0 | J12: =J57 -> 16/44 | K12: FERRARI _ Chassis | L12: 0 | M12: =IF(OR(D13,D14,T12),"X",1) -> 1 | N12: € 27,000,000 | P12: =IF(L12,N12,0) -> € 0 | R12: 16/44 | S12: FERRARI _ Motor | T12: 0 | U12: =IF(OR(D13,D14,L12),"X",1) -> 1 | V12: € 27,000,000 | X12: € 0
B13: 16 | C13: Charles Leclerc | D13: 0 | E13: =IF(OR(L12,T12,D14),"X",1) -> 1 | F13: € 39,000,000 | H13: € 0 | J13: 4/81 | K13: MCLAREN _ Chassis | L13: 0 | M13: =IF(OR(D15,D16,T13),"X",1) -> 1 | N13: € 28,000,000 | P13: € 0 | R13: 4/81 | S13: MCLAREN _ Motor | T13: 0 | U13: =IF(OR(D15,D16,L13),"X",1) -> 1 | V13: € 28,000,000 | X13: € 0
B14: 44 | C14: Lewis Hamilton | D14: 0 | E14: =IF(OR(L12,T12,D13),"X",1) -> 1 | F14: € 33,000,000 | H14: € 0 | J14: 63/12 | K14: MERCEDES _ Chassis | L14: 0 | M14: =IF(OR(D17,D18,T14),"X",1) -> 1 | N14: € 22,000,000 | P14: € 0 | R14: 63/12 | S14: MERCEDES _ Motor | T14: 0 | U14: =IF(OR(D17,D18,L14),"X",1) -> 1 | V14: € 22,000,000 | X14: € 0
B15: 4 | C15: Lando Norris | D15: 0 | E15: =IF(OR(L13,T13,D16),"X",1) -> 1 | F15: € 40,000,000 | H15: € 0 | J15: 18/14 | K15: ASTON _ Chassis | L15: 0 | M15: =IF(OR(D19,D20,T15),"X",1) -> 1 | N15: € 19,000,000 | P15: € 0 | R15: 18/14 | S15: ASTON _ Motor | T15: 0 | U15: =IF(OR(D19,D20,L15),"X",1) -> 1 | V15: € 19,000,000 | X15: € 0
B16: 81 | C16: Oscar Piastri | D16: 0 | E16: =IF(OR(L13,T13,D15),"X",1) -> 1 | F16: € 38,000,000 | H16: € 0 | J16: 22/6 | K16: RACINGBULLS_ Chassis | L16: 0 | M16: =IF(OR(D21,D22,T16),"X",1) -> 1 | N16: € 15,000,000 | P16: € 0 | R16: 22/6 | S16: RACINGBULLS_ Motor | T16: 0 | U16: =IF(OR(D21,D22,L16),"X",1) -> 1 | V16: € 15,000,000 | X16: € 0
B17: 63 | C17: George Russell | D17: 0 | E17: =IF(OR(L14,T14,D18),"X",1) -> 1 | F17: € 33,000,000 | H17: € 0 | J17: 87/31 | K17: HAAS _ Chassis | L17: 0 | M17: =IF(OR(D23,D24,T17),"X",1) -> 1 | N17: € 19,000,000 | P17: € 0 | R17: 87/31 | S17: HAAS _ Motor | T17: 0 | U17: =IF(OR(D23,D24,L17),"X",1) -> 1 | V17: € 19,000,000 | X17: € 0
B18: 12 | C18: Andrea Kimi Antonelli | D18: 0 | E18: =IF(OR(L14,T14,D17),"X",1) -> 1 | F18: € 20,000,000 | H18: € 0 | J18: 10/7 | K18: ALPINE_ Chassis | L18: 0 | M18: =IF(OR(D25,D26,T18),"X",1) -> 1 | N18: € 15,000,000 | P18: € 0 | R18: 10/23 | S18: ALPINE_ Motor | T18: 0 | U18: =IF(OR(D25,D26,L18),"X",1) -> 1 | V18: € 15,000,000 | X18: € 0
B19: 18 | C19: Lance Stroll | D19: 0 | E19: =IF(OR(L15,T15,D20),"X",1) -> 1 | F19: € 14,000,000 | H19: € 0 | J19: 23/55 | K19: WILLIAMS_ Chassis | L19: 0 | M19: =IF(OR(D27,D28,T19),"X",1) -> 1 | N19: € 9,000,000 | P19: € 0 | R19: 23/55 | S19: WILLIAMS_ Motor | T19: 0 | U19: =IF(OR(D27,D28,L19),"X",1) -> 1 | V19: € 9,000,000 | X19: € 0
B20: 14 | C20: Fernando Alonso | D20: 0 | E20: =IF(OR(L15,T15,D19),"X",1) -> 1 | F20: € 23,000,000 | H20: € 0 | J20: 27/5 | K20: KICK SAUBER_ Chassis | L20: 0 | M20: =IF(OR(D29,D30,T20),"X",1) -> 1 | N20: € 8,000,000 | P20: € 0 | R20: 27/5 | S20: KICK SAUBER_ Motor | T20: 0 | U20: =IF(OR(D29,D30,L20),"X",1) -> 1 | V20: € 8,000,000 | X20: € 0
B21: 22 | C21: Yuki Tsunoda | D21: 0 | E21: =IF(OR(L16,T16,D22),"X",1) -> 1 | F21: € 15,000,000 | H21: € 0
B22: 6 | C22: Isack Hadjar | D22: 0 | E22: =IF(OR(L16,T16,D21),"X",1) -> 1 | F22: € 9,000,000 | H22: € 0 | R22: Uitleg
B23: 87 | C23: Olivier Bearman | D23: 0 | E23: =IF(OR(L17,T17,D24),"X",1) -> 1 | F23: € 14,000,000 | H23: € 0 | R23: 1. | S23: Vul je teamnaam en de naam van de manager in.
B24: 31 | C24: Esteban Ocon | D24: 0 | E24: =IF(OR(L17,T17,D23),"X",1) -> 1 | F24: € 19,000,000 | H24: € 0 | J24: Wie wordt volgens jou Wereldkampioen? | R24: 2. | S24: Bij het item Coureurs, Chassis en Motor vul je in het gele een
B25: 10 | C25: Pierre Gasly | D25: 0 | E25: =IF(OR(L18,T18,D26),"X",1) -> 1 | F25: € 16,000,000 | H25: € 0 | S25: 1 voor de betreffende item wat je wilt. Als je wilt corrigeren
B26: 7 | C26: Jack Doohan | D26: 0 | E26: =IF(OR(L18,T18,D25),"X",1) -> 1 | F26: € 10,000,000 | H26: € 0 | S26: vul je weer een 0 in.
B27: 23 | C27: Alex Albon | D27: 0 | E27: =IF(OR(L19,T19,D28),"X",1) -> 1 | F27: € 11,000,000 | H27: € 0 | R27: 3. | S27: Vul jouw voorspelling van de wereldkampioen in.
B28: =B73 -> 55 | C28: Carlos Sainz | D28: 0 | E28: =IF(OR(L19,T19,D27),"X",1) -> 1 | F28: € 11,000,000 | H28: € 0 | J28: Hoeveel GP-wedstrijden wint de wereldkampioen? | R28: 4. | S28: Vul jouw voorspelling van het aantal wedstrijden in dat deze
B29: 27 | C29: Nico Hülkenberg | D29: 0 | E29: =IF(OR(L20,T20,D30),"X",1) -> 1 | F29: € 11,000,000 | H29: € 0 | S29: wereldkampioen zal winnen.
B30: 5 | C30: Gabriël Bortoleto | D30: 0 | E30: =IF(OR(L20,T20,D29),"X",1) -> 1 | F30: € 9,000,000 | H30: € 0 | R30: 5. | S30: Let op! Rood is er iets niet goed!!
B31: 2025 - Versie 0.2 | H31: € 0
H32: € 0
C55: Coureurs | K55: Chassis
B56: 1 | C56: Max Verstappen | D56: MV | F56: € 42,000,000 | J56: =CONCATENATE($B$56,"/",$B$57) -> 1/30 | K56: RED BULL _ Chassis | L56: RB | N56: € 22,000,000 | S56: Max Verstappen | V56: 42000000
B57: 30 | C57: Liam Lawson | D57: LL | F57: € 25,000,000 | J57: =CONCATENATE($B$58,"/",$B$59) -> 16/44 | K57: FERRARI _ Chassis | L57: SF | N57: € 27,000,000 | S57: Sergio Perez | V57: 25000000
B58: 16 | C58: Charles Leclerc | D58: CL | F58: € 39,000,000 | J58: =CONCATENATE($B$60,"/",$B$61) -> 4/81 | K58: MCLAREN _ Chassis | L58: McL | N58: € 28,000,000 | S58: Lewis Hamilton | V58: 33000000
B59: 44 | C59: Lewis Hamilton | D59: LW | F59: € 33,000,000 | J59: =CONCATENATE($B$62,"/",$B$63) -> 63/12 | K59: MERCEDES _ Chassis | L59: Mer | N59: € 22,000,000 | S59: George Russell | V59: 33000000 | Y59: =25/42 -> 0.60
B60: 4 | C60: Lando Norris | D60: LN | F60: € 40,000,000 | J60: =CONCATENATE($B$64,"/",$B$65) -> 18/14 | K60: ASTON _ Chassis | L60: AsM | N60: € 19,000,000 | S60: Charles Leclerc | V60: 39000000 | Y60: =20/33 -> 0.61
B61: 81 | C61: Oscar Piastri | D61: OP | F61: € 38,000,000 | J61: =CONCATENATE($B$66,"/",$B$67) -> 22/6 | K61: RACINGBULLS_ Chassis | L61: RaB | N61: € 15,000,000 | S61: Carlos Sainz Jr. | V61: 36000000 | Y61: =15*0.6 -> 9.00
B62: 63 | C62: George Russell | D62: GR | F62: € 33,000,000 | J62: =CONCATENATE($B$68,"/",$B$69) -> 87/31 | K62: HAAS _ Chassis | L62: HAA | N62: € 19,000,000 | S62: Lando Norris | V62: 40000000
B63: 12 | C63: Andrea Kimi Antonelli | D63: AA | F63: € 20,000,000 | J63: =CONCATENATE($B$70,"/",$B$71) -> 10/7 | K63: ALPINE_ Chassis | L63: ALP | N63: € 15,000,000 | S63: Oscar Piastri | V63: 38000000
B64: 18 | C64: Lance Stroll | D64: LS | F64: € 14,000,000 | J64: =CONCATENATE($B$72,"/",$B$73) -> 23/55 | K64: WILLIAMS_ Chassis | L64: WIL | N64: € 9,000,000 | S64: Lance Stroll | V64: 14000000
B65: 14 | C65: Fernando Alonso | D65: FA | F65: € 23,000,000 | J65: =CONCATENATE($B$74,"/",$B$75) -> 27/5 | K65: KICK SAUBER_ Chassis | L65: KSA | N65: € 8,000,000 | S65: Fernando Alonso | V65: 23000000
B66: 22 | C66: Yuki Tsunoda | D66: YT | F66: € 15,000,000 | J66: =CONCATENATE($B$76,"/",$B$77) -> ../.. | L66: .. | S66: Esteban Ocon | V66: 13000000
B67: 6 | C67: Isack Hadjar | D67: IH | F67: € 9,000,000 | J67: =CONCATENATE($B$78,"/",$B$79) -> ../.. | L67: .. | S67: Pierre Gasly | V67: 16000000
B68: 87 | C68: Olivier Bearman | D68: OB | F68: € 14,000,000 | J68: =CONCATENATE($B$80,"/",$B$81) -> ../.. | L68: .. | S68: Alexander Albon | V68: 11000000
B69: 31 | C69: Esteban Ocon | D69: EO | F69: € 19,000,000 | J69: =CONCATENATE($B$82,"/",$B$83) -> ../.. | L69: .. | S69: Logan Sargeant | V69: 7000000
B70: 10 | C70: Pierre Gasly | D70: PG | F70: € 16,000,000 | S70: Daniel Ricciardo | V70: 14000000
B71: 7 | C71: Jack Doohan | D71: JD | F71: € 10,000,000 | K71: Motor | S71: Yuki Tsunoda | V71: 15000000
B72: 23 | C72: Alex Albon | D72: AA | F72: € 11,000,000 | J72: =CONCATENATE($B$56,"/",$B$57) -> 1/30 | K72: RED BULL _ Motor | L72: RB | N72: € 22,000,000 | S72: Valtteri Botas | V72: 7000000
B73: 55 | C73: Carlos Sainz | D73: CZ | F73: € 11,000,000 | J73: =CONCATENATE($B$58,"/",$B$59) -> 16/44 | K73: FERRARI _ Motor | L73: SF | N73: € 27,000,000 | S73: Guanyu Zhou | V73: 8000000
B74: 27 | C74: Nico Hülkenberg | D74: NH | F74: € 11,000,000 | J74: =CONCATENATE($B$60,"/",$B$61) -> 4/81 | K74: MCLAREN _ Motor | L74: McL | N74: € 28,000,000 | S74: Nico Hülkenberg | V74: 19000000
B75: 5 | C75: Gabriël Bortoleto | D75: GB | F75: € 9,000,000 | J75: =CONCATENATE($B$62,"/",$B$63) -> 63/12 | K75: MERCEDES _ Motor | L75: Mer | N75: € 22,000,000 | S75: Kevin Magnussen | V75: 15000000
B76: .. | D76: .. | J76: =CONCATENATE($B$64,"/",$B$65) -> 18/14 | K76: ASTON _ Motor | L76: AsM | N76: € 19,000,000
B77: .. | D77: .. | J77: =CONCATENATE($B$66,"/",$B$67) -> 22/6 | K77: RACINGBULLS_ Motor | L77: RaB | N77: € 15,000,000
B78: .. | D78: .. | J78: =CONCATENATE($B$68,"/",$B$69) -> 87/31 | K78: HAAS _ Motor | L78: HAA | N78: € 19,000,000
B79: .. | D79: .. | J79: =CONCATENATE($B$70,"/",$B$72) -> 10/23 | K79: ALPINE_ Motor | L79: ALP | N79: € 15,000,000
B80: .. | D80: .. | J80: =CONCATENATE($B$72,"/",$B$73) -> 23/55 | K80: WILLIAMS_ Motor | L80: WIL | N80: € 9,000,000
B81: .. | D81: .. | J81: =CONCATENATE($B$74,"/",$B$75) -> 27/5 | K81: KICK SAUBER_ Motor | L81: KSA | N81: € 8,000,000
B82: .. | D82: .. | J82: =CONCATENATE($B$76,"/",$B$77) -> ../.. | L82: =L66 -> ..
B83: .. | D83: .. | J83: =CONCATENATE($B$78,"/",$B$79) -> ../.. | L83: =L67 -> ..
J84: =CONCATENATE($B$80,"/",$B$81) -> ../.. | L84: =L68 -> ..
C85: * Nog niet officieel bevestigd | J85: =CONCATENATE($B$82,"/",$B$83) -> ../.. | L85: =L69 -> ..
B86: 22
J87: =IF(J88>1,"Ok","HOLD") -> HOLD
B88: 1 | C88: Tekst laten staan | D88: 1 | F88: Tekst laten staan | J88: 1 | K88: Tekst laten staan
C89: Kies hier de wereldkampioen | F89: Kies hier joker 1 | K89: Kies hier uw aantal | P89: 01 - Grand Prix van | Q89: Bahrein | R89: , Bahrein | T89: Bah | V89: 56
C90: =C56 -> Max Verstappen | F90: =CONCATENATE(P89,Q89,R89) -> 01 - Grand Prix van Bahrein, Bahrein | K90: 1 race | P90: 02 - Grand Prix van | Q90: Saoedi-Arabië | R90: , Jeddah | T90: Sao | V90: 50
C91: =C57 -> Liam Lawson | F91: =CONCATENATE(P90,Q90,R90) -> 02 - Grand Prix van Saoedi-Arabië, Jeddah | K91: 2 races | P91: 03 - Grand Prix van | Q91: Australië | R91: , Albert Park | T91: Aus | V91: 58
C92: Charles Leclerc | F92: 03 - Grand Prix van Australië, Albert Park | K92: 3 races | P92: 04 - Grand Prix van | Q92: Japan | R92: , Suzuka | T92: Jap | V92: 53
C93: Lewis Hamilton | F93: =CONCATENATE(P92,Q92,R92) -> 04 - Grand Prix van Japan, Suzuka | K93: 4 races | P93: 05 - Grand Prix van | Q93: China | R93: , Shanghai | T93: Chi | V93: 56
C94: Lando Norris | F94: 05 - Grand Prix van China, Shanghai | K94: 5 races | P94: 06 - Grand Prix van | Q94: Verenigde Staten | R94: , Miami | T94: VS | V94: 57
C95: Oscar Piastri | F95: 06 - Grand Prix van Verenigde Staten, Miami | K95: 6 races | P95: 07 - Grand Prix van | Q95: Italië | R95: , Imola | T95: Ita | V95: 63
C96: George Russell | F96: 07 - Grand Prix van Italië, Imola | K96: 7 races | P96: 08 - Grand Prix van | Q96: Monaco | R96: , Monaco | T96: Mon | V96: 78
C97: Andrea Kimi Antonelli | D97: 1 | F97: Tekst laten staan | K97: 8 races | P97: 09 - Grand Prix van | Q97: Canada | R97: , Montreal | T97: Can | V97: 70
C98: Lance Stroll | F98: Kies hier joker 2 | K98: 9 races | P98: 10 - Grand Prix van | Q98: Spanje | R98: , Barcelona | T98: Spa | V98: 66
C99: Fernando Alonso | F99: =CONCATENATE(P96,Q96,R96) -> 08 - Grand Prix van Monaco, Monaco | K99: 10 races | P99: 11 - Grand Prix van | Q99: Oostenrijk | R99: , A1 Ring | T99: Oos | V99: 71
C100: Yuki Tsunoda | F100: 09 - Grand Prix van Canada, Montreal | K100: 11 races | P100: 12 - Grand Prix van | Q100: Engeland | R100: , Silverstone | T100: Eng | V100: 52
C101: Isack Hadjar | F101: 10 - Grand Prix van Spanje, Barcelona | K101: 12 races | P101: 13 - Grand Prix van | Q101: Hongarije | R101: , Boedapest | T101: Hon | V101: 70
C102: Olivier Bearman | F102: 11 - Grand Prix van Oostenrijk, A1 Ring | K102: 13 races | P102: 14 - Grand Prix van | Q102: België | R102: , Francorchamps | T102: Bel | V102: 44
C103: Esteban Ocon | F103: 12 - Grand Prix van Engeland, Silverstone | K103: 14 races | P103: 15 - Grand Prix van | Q103: Nederland | R103: , Zandvoort | T103: Ned | V103: 72
C104: Pierre Gasly | F104: 13 - Grand Prix van Hongarije, Boedapest | K104: 15 races | P104: 16 - Grand Prix van | Q104: Italië | R104: , Monza | T104: Ita | V104: 53
C105: Jack Doohan | F105: 14 - Grand Prix van België, Francorchamps | K105: 16 races | P105: 17 - Grand Prix van | Q105: Azerbeidzjan | R105: , Baku | T105: Aze | V105: 51
C106: Alex Albon | D106: 1 | F106: Tekst laten staan | K106: 17 races | P106: 18 - Grand Prix van | Q106: Singapore | R106: , Singapore | T106: Sin | V106: 61
C107: Carlos Sainz | F107: Kies hier joker 3 | K107: 18 races | P107: 19 - Grand Prix van | Q107: Verenigde Staten | R107: , Austin | T107: VS | V107: 56
C108: Nico Hülkenberg | F108: =CONCATENATE(P103,Q103,R103) -> 15 - Grand Prix van Nederland, Zandvoort | K108: 19 races | P108: 20 - Grand Prix van | Q108: Mexico | R108: , Mexico City | T108: Mex | V108: 71
C109: Gabriël Bortoleto | F109: =CONCATENATE(P104,Q104,R104) -> 16 - Grand Prix van Italië, Monza | K109: 20 races | P109: 21 - Grand Prix van | Q109: Brazilië | R109: , Sao Paulo | T109: Bra | V109: 71
C110: 0 | F110: 17 - Grand Prix van Azerbeidzjan, Baku | K110: 21 races | P110: 22 - Grand Prix van | Q110: Las Vegas | R110: , Las Vegas | T110: Las | V110: 50
C111: 0 | F111: 18 - Grand Prix van Singapore, Singapore | K111: 22 races | P111: 23 - Grand Prix van | Q111: Qatar | R111: , Qatar | T111: Qat | V111: 57
F112: 19 - Grand Prix van Verenigde Staten, Austin | K112: 23 races | P112: 24 - Grand Prix van | Q112: Abu Dhabi | R112: , Abu Dhabi | T112: Abd | V112: 58
F113: 20 - Grand Prix van Mexico, Mexico City | K113: 24 races
F114: 21 - Grand Prix vanBrazilië, Sao Paulo
F115: 22 - Grand Prix vanLas Vegas, Las Vegas
F116: 23 - Grand Prix vanQatar, Qatar
F117: 24 - Grand Prix vanAbu Dhabi, Abu Dhabi
B119: A1 | C119: 2025-03-13T23:59:00
B120: A2 | C120: =NOW() -> 2025-02-16T16:59:41
B121: A3 | C121: =C119-C120 -> 25

Sheet F1-Manager (site) (hidden)
A1: ='F1-Manager (invulblad)'!B1 -> www.haemerke.nl presents "Formule 1 Manager 2025"
B4: ='F1-Manager (invulblad)'!B5:F5 -> 0 | F4: Verbruikte budget is
B5: ='F1-Manager (invulblad)'!B7:F7 -> 0 | F5: ='F1-Manager (invulblad)'!T4 -> € 80,000,000
B7: COUREURS
B8: ='F1-Manager (invulblad)'!B11 -> 1 | C8: ='F1-Manager (invulblad)'!C11 -> Max Verstappen | D8: ='F1-Manager (invulblad)'!H11 -> € 0
B9: ='F1-Manager (invulblad)'!B12 -> 30 | C9: ='F1-Manager (invulblad)'!C12 -> Liam Lawson | D9: ='F1-Manager (invulblad)'!H12 -> € 0
B10: ='F1-Manager (invulblad)'!B13 -> 16 | C10: ='F1-Manager (invulblad)'!C13 -> Charles Leclerc | D10: ='F1-Manager (invulblad)'!H13 -> € 0
B11: ='F1-Manager (invulblad)'!B14 -> 44 | C11: ='F1-Manager (invulblad)'!C14 -> Lewis Hamilton | D11: ='F1-Manager (invulblad)'!H14 -> € 0
B12: ='F1-Manager (invulblad)'!B15 -> 4 | C12: ='F1-Manager (invulblad)'!C15 -> Lando Norris | D12: ='F1-Manager (invulblad)'!H15 -> € 0
B13: ='F1-Manager (invulblad)'!B16 -> 81 | C13: ='F1-Manager (invulblad)'!C16 -> Oscar Piastri | D13: ='F1-Manager (invulblad)'!H16 -> € 0
B14: ='F1-Manager (invulblad)'!B17 -> 63 | C14: ='F1-Manager (invulblad)'!C17 -> George Russell | D14: ='F1-Manager (invulblad)'!H17 -> € 0
B15: ='F1-Manager (invulblad)'!B18 -> 12 | C15: ='F1-Manager (invulblad)'!C18 -> Andrea Kimi Antonelli | D15: ='F1-Manager (invulblad)'!H18 -> € 0
B16: ='F1-Manager (invulblad)'!B19 -> 18 | C16: ='F1-Manager (invulblad)'!C19 -> Lance Stroll | D16: ='F1-Manager (invulblad)'!H19 -> € 0
B17: ='F1-Manager (invulblad)'!B20 -> 14 | C17: ='F1-Manager (invulblad)'!C20 -> Fernando Alonso | D17: ='F1-Manager (invulblad)'!H20 -> € 0
B18: ='F1-Manager (invulblad)'!B21 -> 22 | C18: ='F1-Manager (invulblad)'!C21 -> Yuki Tsunoda | D18: ='F1-Manager (invulblad)'!H21 -> € 0
B19: ='F1-Manager (invulblad)'!B22 -> 6 | C19: ='F1-Manager (invulblad)'!C22 -> Isack Hadjar | D19: ='F1-Manager (invulblad)'!H22 -> € 0
B20: ='F1-Manager (invulblad)'!B23 -> 87 | C20: ='F1-Manager (invulblad)'!C23 -> Olivier Bearman | D20: ='F1-Manager (invulblad)'!H23 -> € 0
B21: ='F1-Manager (invulblad)'!B24 -> 31 | C21: ='F1-Manager (invulblad)'!C24 -> Esteban Ocon | D21: ='F1-Manager (invulblad)'!H24 -> € 0
B22: ='F1-Manager (invulblad)'!B25 -> 10 | C22: ='F1-Manager (invulblad)'!C25 -> Pierre Gasly | D22: ='F1-Manager (invulblad)'!H25 -> € 0
B23: ='F1-Manager (invulblad)'!B26 -> 7 | C23: ='F1-Manager (invulblad)'!C26 -> Jack Doohan | D23: ='F1-Manager (invulblad)'!H26 -> € 0
B24: ='F1-Manager (invulblad)'!B27 -> 23 | C24: ='F1-Manager (invulblad)'!C27 -> Alex Albon | D24: ='F1-Manager (invulblad)'!H27 -> € 0
B25: ='F1-Manager (invulblad)'!B28 -> 55 | C25: ='F1-Manager (invulblad)'!C28 -> Carlos Sainz | D25: ='F1-Manager (invulblad)'!H28 -> € 0
B26: ='F1-Manager (invulblad)'!B29 -> 27 | C26: ='F1-Manager (invulblad)'!C29 -> Nico Hülkenberg | D26: ='F1-Manager (invulblad)'!H29 -> € 0
B27: ='F1-Manager (invulblad)'!B30 -> 5 | C27: ='F1-Manager (invulblad)'!C30 -> Gabriël Bortoleto | D27: ='F1-Manager (invulblad)'!H30 -> € 0
B29: CHASSIS
B30: ='F1-Manager (invulblad)'!J11 -> 1/30 | C30: ='F1-Manager (invulblad)'!K11 -> RED BULL _ Chassis | D30: ='F1-Manager (invulblad)'!P11 -> € 0
B31: ='F1-Manager (invulblad)'!J12 -> 16/44 | C31: ='F1-Manager (invulblad)'!K12 -> FERRARI _ Chassis | D31: ='F1-Manager (invulblad)'!P12 -> € 0
B32: ='F1-Manager (invulblad)'!J13 -> 4/81 | C32: ='F1-Manager (invulblad)'!K13 -> MCLAREN _ Chassis | D32: ='F1-Manager (invulblad)'!P13 -> € 0
B33: ='F1-Manager (invulblad)'!J14 -> 63/12 | C33: ='F1-Manager (invulblad)'!K14 -> MERCEDES _ Chassis | D33: ='F1-Manager (invulblad)'!P14 -> € 0
B34: ='F1-Manager (invulblad)'!J15 -> 18/14 | C34: ='F1-Manager (invulblad)'!K15 -> ASTON _ Chassis | D34: ='F1-Manager (invulblad)'!P15 -> € 0
B35: ='F1-Manager (invulblad)'!J16 -> 22/6 | C35: ='F1-Manager (invulblad)'!K16 -> RACINGBULLS_ Chassis | D35: ='F1-Manager (invulblad)'!P16 -> € 0
B36: ='F1-Manager (invulblad)'!J17 -> 87/31 | C36: ='F1-Manager (invulblad)'!K17 -> HAAS _ Chassis | D36: ='F1-Manager (invulblad)'!P17 -> € 0
B37: ='F1-Manager (invulblad)'!J18 -> 10/7 | C37: ='F1-Manager (invulblad)'!K18 -> ALPINE_ Chassis | D37: ='F1-Manager (invulblad)'!P18 -> € 0
B38: ='F1-Manager (invulblad)'!J19 -> 23/55 | C38: ='F1-Manager (invulblad)'!K19 -> WILLIAMS_ Chassis | D38: ='F1-Manager (invulblad)'!P19 -> € 0
B39: ='F1-Manager (invulblad)'!J20 -> 27/5 | C39: ='F1-Manager (invulblad)'!K20 -> KICK SAUBER_ Chassis | D39: ='F1-Manager (invulblad)'!P20 -> € 0
B41: MOTOR
B42: ='F1-Manager (invulblad)'!R11 -> 1/30 | C42: ='F1-Manager (invulblad)'!S11 -> RED BULL _ Motor | D42: ='F1-Manager (invulblad)'!X11 -> € 0
B43: ='F1-Manager (invulblad)'!R12 -> 16/44 | C43: ='F1-Manager (invulblad)'!S12 -> FERRARI _ Motor | D43: ='F1-Manager (invulblad)'!X12 -> € 0
B44: ='F1-Manager (invulblad)'!R13 -> 4/81 | C44: ='F1-Manager (invulblad)'!S13 -> MCLAREN _ Motor | D44: ='F1-Manager (invulblad)'!X13 -> € 0
B45: ='F1-Manager (invulblad)'!R14 -> 63/12 | C45: ='F1-Manager (invulblad)'!S14 -> MERCEDES _ Motor | D45: ='F1-Manager (invulblad)'!X14 -> € 0
B46: ='F1-Manager (invulblad)'!R15 -> 18/14 | C46: ='F1-Manager (invulblad)'!S15 -> ASTON _ Motor | D46: ='F1-Manager (invulblad)'!X15 -> € 0
B47: ='F1-Manager (invulblad)'!R16 -> 22/6 | C47: ='F1-Manager (invulblad)'!S16 -> RACINGBULLS_ Motor | D47: ='F1-Manager (invulblad)'!X16 -> € 0
B48: ='F1-Manager (invulblad)'!R17 -> 87/31 | C48: ='F1-Manager (invulblad)'!S17 -> HAAS _ Motor | D48: ='F1-Manager (invulblad)'!X17 -> € 0
B49: ='F1-Manager (invulblad)'!R18 -> 10/23 | C49: ='F1-Manager (invulblad)'!S18 -> ALPINE_ Motor | D49: ='F1-Manager (invulblad)'!X18 -> € 0
B50: ='F1-Manager (invulblad)'!R19 -> 23/55 | C50: ='F1-Manager (invulblad)'!S19 -> WILLIAMS_ Motor | D50: ='F1-Manager (invulblad)'!X19 -> € 0
B51: ='F1-Manager (invulblad)'!R20 -> 27/5 | C51: ='F1-Manager (invulblad)'!S20 -> KICK SAUBER_ Motor | D51: ='F1-Manager (invulblad)'!X20 -> € 0
B53: Wereldkampioen
B54: =IF('F1-Manager (invulblad)'!B88=2,'F1-Manager (invulblad)'!C90,IF('F1-Manager (invulblad)'!B88=3,'F1-Manager (invulblad)'!C91,IF('F1-Manager (invulblad)'!B88=4,'F1-Manager (invulblad)'!C92,IF('F1-Manager (invulblad)'!B88=5,'F1-Manager (invulblad)'!C93,IF('F1-Manager (invulblad)'!B88=6,'F1-Manager (invulblad)'!C94,IF('F1-Manager (invulblad)'!B88=7,'F1-Manager (invulblad)'!C95,IF('F1-Manager (invulblad)'!B88=8,'F1-Manager (invulblad)'!C96,IF('F1-Manager (invulblad)'!B88=9,'F1-Manager (invulblad)'!C97,IF('F1-Manager (invulblad)'!B88=10,'F1-Manager (invulblad)'!C98,IF('F1-Manager (invulblad)'!B88=11,'F1-Manager (invulblad)'!C99,IF('F1-Manager (invulblad)'!B88=12,'F1-Manager (invulblad)'!C100,IF('F1-Manager (invulblad)'!B88=13,'F1-Manager (invulblad)'!C101,IF('F1-Manager (invulblad)'!B88=14,'F1-Manager (invulblad)'!C102,IF('F1-Manager (invulblad)'!B88=15,'F1-Manager (invulblad)'!C103,IF('F1-Manager (invulblad)'!B88=16,'F1-Manager (invulblad)'!C104,IF('F1-Manager (invulblad)'!B88=17,'F1-Manager (invulblad)'!C105,IF('F1-Manager (invulblad)'!B88=18,'F1-Manager (invulblad)'!C106,IF('F1-Manager (invulblad)'!B88=19,'F1-Manager (invulblad)'!C107,IF('F1-Manager (invulblad)'!B88=20,'F1-Manager (invulblad)'!C108,IF('F1-Manager (invulblad)'!B88=21,'F1-Manager (invulblad)'!C109,IF('F1-Manager (invulblad)'!B88=22,'F1-Manager (invulblad)'!C110,IF('F1-Manager (invulblad)'!B88=23,'F1-Manager (invulblad)'!C111,IF('F1-Manager (invulblad)'!B88=24,'F1-Manager (invulblad)'!C112,IF('F1-Manager (invulblad)'!B88=25,'F1-Manager (invulblad)'!C113,"Wie wordt er wereldkampioen")))))))))))))))))))))))) -> Wie wordt er wereldkampioen
B56: Barragevraag
B57: =IF('F1-Manager (invulblad)'!J88=2,'F1-Manager (invulblad)'!K90,IF('F1-Manager (invulblad)'!J88=3,'F1-Manager (invulblad)'!K91,IF('F1-Manager (invulblad)'!J88=4,'F1-Manager (invulblad)'!K92,IF('F1-Manager (invulblad)'!J88=5,'F1-Manager (invulblad)'!K93,IF('F1-Manager (invulblad)'!J88=6,'F1-Manager (invulblad)'!K94,IF('F1-Manager (invulblad)'!J88=7,'F1-Manager (invulblad)'!K95,IF('F1-Manager (invulblad)'!J88=8,'F1-Manager (invulblad)'!K96,IF('F1-Manager (invulblad)'!J88=9,'F1-Manager (invulblad)'!K97,IF('F1-Manager (invulblad)'!J88=10,'F1-Manager (invulblad)'!K98,IF('F1-Manager (invulblad)'!J88=11,'F1-Manager (invulblad)'!K99,IF('F1-Manager (invulblad)'!J88=12,'F1-Manager (invulblad)'!K100,IF('F1-Manager (invulblad)'!J88=13,'F1-Manager (invulblad)'!K101,IF('F1-Manager (invulblad)'!J88=14,'F1-Manager (invulblad)'!K102,IF('F1-Manager (invulblad)'!J88=15,'F1-Manager (invulblad)'!K103,IF('F1-Manager (invulblad)'!J88=16,'F1-Manager (invulblad)'!K104,IF('F1-Manager (invulblad)'!J88=17,'F1-Manager (invulblad)'!K105,IF('F1-Manager (invulblad)'!J88=18,'F1-Manager (invulblad)'!K106,IF('F1-Manager (invulblad)'!J88=19,'F1-Manager (invulblad)'!K107,IF('F1-Manager (invulblad)'!J88=20,'F1-Manager (invulblad)'!K108,IF('F1-Manager (invulblad)'!J88=21,'F1-Manager (invulblad)'!K109,IF('F1-Manager (invulblad)'!J88=22,'F1-Manager (invulblad)'!K110,IF('F1-Manager (invulblad)'!J88=23,'F1-Manager (invulblad)'!K111,IF('F1-Manager (invulblad)'!J88=24,'F1-Manager (invulblad)'!K112,IF('F1-Manager (invulblad)'!J88=25,'F1-Manager (invulblad)'!K113,"Hoeveel Grand Prix wedstrijden zal de wereldkampioen winnen?")))))))))))))))))))))))) -> Hoeveel Grand Prix wedstrijden zal de wereldkampioen winnen?

Sheet F1-Manager (invulbladExcel) (hidden)
B1: Coureurs | C1: ='F1-Manager (invulblad)'!$B$56 -> 1 | D1: ='F1-Manager (invulblad)'!$B$57 -> 30 | E1: ='F1-Manager (invulblad)'!$B$58 -> 16 | F1: ='F1-Manager (invulblad)'!$B$59 -> 44 | G1: ='F1-Manager (invulblad)'!$B$60 -> 4 | H1: ='F1-Manager (invulblad)'!$B$61 -> 81 | I1: ='F1-Manager (invulblad)'!$B$62 -> 63 | J1: ='F1-Manager (invulblad)'!$B$63 -> 12 | K1: ='F1-Manager (invulblad)'!$B$64 -> 18 | L1: ='F1-Manager (invulblad)'!$B$65 -> 14 | M1: ='F1-Manager (invulblad)'!$B$66 -> 22 | N1: ='F1-Manager (invulblad)'!$B$67 -> 6 | O1: ='F1-Manager (invulblad)'!$B$68 -> 87 | P1: ='F1-Manager (invulblad)'!$B$69 -> 31 | Q1: ='F1-Manager (invulblad)'!$B$70 -> 10 | R1: ='F1-Manager (invulblad)'!$B$71 -> 7 | S1: ='F1-Manager (invulblad)'!$B$72 -> 23 | T1: ='F1-Manager (invulblad)'!$B$73 -> 55 | U1: ='F1-Manager (invulblad)'!$B$74 -> 27 | V1: ='F1-Manager (invulblad)'!$B$75 -> 5 | W1: ='F1-Manager (invulblad)'!$B$76 -> .. | X1: ='F1-Manager (invulblad)'!$B$77 -> .. | Y1: ='F1-Manager (invulblad)'!$B$78 -> .. | Z1: ='F1-Manager (invulblad)'!$B$79 -> .. | AA1: ='F1-Manager (invulblad)'!$B$80 -> .. | AB1: ='F1-Manager (invulblad)'!$B$81 -> .. | AC1: ='F1-Manager (invulblad)'!$B$82 -> .. | AD1: ='F1-Manager (invulblad)'!$B$83 -> .. | AE1: Chassis | AF1: ='F1-Manager (invulblad)'!$J$56 -> 1/30 | AG1: ='F1-Manager (invulblad)'!$J$57 -> 16/44 | AH1: ='F1-Manager (invulblad)'!$J$58 -> 4/81 | AI1: ='F1-Manager (invulblad)'!$J$59 -> 63/12 | AJ1: ='F1-Manager (invulblad)'!$J$60 -> 18/14 | AK1: ='F1-Manager (invulblad)'!$J$61 -> 22/6 | AL1: ='F1-Manager (invulblad)'!$J$62 -> 87/31 | AM1: ='F1-Manager (invulblad)'!$J$63 -> 10/7 | AN1: ='F1-Manager (invulblad)'!$J$64 -> 23/55 | AO1: ='F1-Manager (invulblad)'!$J$65 -> 27/5 | AP1: ='F1-Manager (invulblad)'!$J$66 -> ../.. | AQ1: ='F1-Manager (invulblad)'!$J$67 -> ../.. | AR1: ='F1-Manager (invulblad)'!$J$68 -> ../.. | AS1: ='F1-Manager (invulblad)'!$J$69 -> ../.. | AT1: Motor | AU1: =AF1 -> 1/30 | AV1: =AG1 -> 16/44 | AW1: 4/81 | AX1: 63/12 | AY1: 18/14 | AZ1: 22/6 | BA1: 87/31 | BB1: 10/7 | BC1: 23/55 | BD1: 27/5 | BE1: ../.. | BF1: ../.. | BG1: =AR1 -> ../.. | BH1: =AS1 -> ../.. | BI1: Jokers | BJ1: 1 | BK1: 2 | BL1: 3 | BM1: 4 | BN1: 5 | BO1: 6 | BP1: 7 | BQ1: 8 | BR1: 9 | BS1: 10 | BT1: 11 | BU1: 12 | BV1: 13 | BW1: 14 | BX1: 15 | BY1: 16 | BZ1: 17 | CA1: 18 | CB1: 19 | CC1: 20 | CD1: 21 | CE1: 22 | CF1: 23 | CG1: 24 | CH1: Banden | CK1: Kampioen | CL1: =C1 -> 1 | CM1: =D1 -> 30 | CN1: 16 | CO1: 44 | CP1: 4 | CQ1: 81 | CR1: 63 | CS1: 12 | CT1: 18 | CU1: 14 | CV1: 22 | CW1: 6 | CX1: 87 | CY1: 31 | CZ1: 10 | DA1: 7 | DB1: 23 | DC1: 55 | DD1: 27 | DE1: 5 | DF1: .. | DG1: .. | DH1: .. | DI1: .. | DJ1: .. | DK1: .. | DL1: .. | DM1: .. | DN1: Barragevraag
C2: ='F1-Manager (invulblad)'!$D$56 -> MV | D2: ='F1-Manager (invulblad)'!$D$57 -> LL | E2: ='F1-Manager (invulblad)'!$D$58 -> CL | F2: ='F1-Manager (invulblad)'!$D$59 -> LW | G2: ='F1-Manager (invulblad)'!$D$60 -> LN | H2: ='F1-Manager (invulblad)'!$D$61 -> OP | I2: ='F1-Manager (invulblad)'!$D$62 -> GR | J2: ='F1-Manager (invulblad)'!$D$63 -> AA | K2: ='F1-Manager (invulblad)'!$D$64 -> LS | L2: ='F1-Manager (invulblad)'!$D$65 -> FA | M2: ='F1-Manager (invulblad)'!$D$66 -> YT | N2: ='F1-Manager (invulblad)'!$D$67 -> IH | O2: ='F1-Manager (invulblad)'!$D$68 -> OB | P2: ='F1-Manager (invulblad)'!$D$69 -> EO | Q2: ='F1-Manager (invulblad)'!$D$70 -> PG | R2: ='F1-Manager (invulblad)'!$D$71 -> JD | S2: ='F1-Manager (invulblad)'!$D$72 -> AA | T2: ='F1-Manager (invulblad)'!$D$73 -> CZ | U2: ='F1-Manager (invulblad)'!$D$74 -> NH | V2: ='F1-Manager (invulblad)'!$D$75 -> GB | W2: ='F1-Manager (invulblad)'!$D$76 -> .. | X2: ='F1-Manager (invulblad)'!$D$77 -> .. | Y2: ='F1-Manager (invulblad)'!$D$78 -> .. | Z2: ='F1-Manager (invulblad)'!$D$79 -> .. | AA2: ='F1-Manager (invulblad)'!$D$80 -> .. | AB2: ='F1-Manager (invulblad)'!$D$81 -> .. | AC2: ='F1-Manager (invulblad)'!$D$82 -> .. | AD2: ='F1-Manager (invulblad)'!$D$83 -> .. | AF2: ='F1-Manager (invulblad)'!$L$56 -> RB | AG2: ='F1-Manager (invulblad)'!$L$57 -> SF | AH2: ='F1-Manager (invulblad)'!$L$58 -> McL | AI2: ='F1-Manager (invulblad)'!$L$59 -> Mer | AJ2: ='F1-Manager (invulblad)'!$L$60 -> AsM | AK2: ='F1-Manager (invulblad)'!$L$61 -> RaB | AL2: ='F1-Manager (invulblad)'!$L$62 -> HAA | AM2: ='F1-Manager (invulblad)'!$L$63 -> ALP | AN2: ='F1-Manager (invulblad)'!$L$64 -> WIL | AO2: ='F1-Manager (invulblad)'!$L$65 -> KSA | AP2: ='F1-Manager (invulblad)'!$L$66 -> .. | AQ2: ='F1-Manager (invulblad)'!$L$67 -> .. | AR2: ='F1-Manager (invulblad)'!$L$68 -> .. | AS2: ='F1-Manager (invulblad)'!$L$69 -> .. | AU2: =AF2 -> RB | AV2: SF | AW2: McL | AX2: Mer | AY2: AsM | AZ2: RaB | BA2: HAA | BB2: ALP | BC2: WIL | BD2: KSA | BE2: .. | BF2: .. | BG2: =AR2 -> .. | BH2: .. | BJ2: ='F1-Manager (invulblad)'!S89 -> 0 | BK2: ='F1-Manager (invulblad)'!S90 -> 0 | BL2: ='F1-Manager (invulblad)'!S91 -> 0 | BM2: ='F1-Manager (invulblad)'!S92 -> 0 | BN2: ='F1-Manager (invulblad)'!S93 -> 0 | BO2: ='F1-Manager (invulblad)'!S94 -> 0 | BP2: ='F1-Manager (invulblad)'!S95 -> 0 | BQ2: ='F1-Manager (invulblad)'!S96 -> 0 | BR2: ='F1-Manager (invulblad)'!S97 -> 0 | BS2: ='F1-Manager (invulblad)'!S98 -> 0 | BT2: ='F1-Manager (invulblad)'!S99 -> 0 | BU2: ='F1-Manager (invulblad)'!S100 -> 0 | BV2: ='F1-Manager (invulblad)'!S101 -> 0 | BW2: ='F1-Manager (invulblad)'!S102 -> 0 | BX2: ='F1-Manager (invulblad)'!S103 -> 0 | BY2: ='F1-Manager (invulblad)'!S104 -> 0 | BZ2: ='F1-Manager (invulblad)'!S105 -> 0 | CA2: ='F1-Manager (invulblad)'!S106 -> 0 | CB2: ='F1-Manager (invulblad)'!S107 -> 0 | CC2: ='F1-Manager (invulblad)'!S108 -> 0 | CD2: ='F1-Manager (invulblad)'!S109 -> 0 | CE2: ='F1-Manager (invulblad)'!S110 -> 0 | CF2: ='F1-Manager (invulblad)'!S111 -> 0 | CG2: ='F1-Manager (invulblad)'!S112 -> 0 | CI2: PIR | CJ2: ='F1-Manager (invulblad)'!V112 -> 58 | CL2: =C2 -> MV | CM2: LL | CN2: CL | CO2: LW | CP2: LN | CQ2: OP | CR2: GR | CS2: AA | CT2: LS | CU2: FA | CV2: YT | CW2: IH | CX2: OB | CY2: EO | CZ2: PG | DA2: JD | DB2: AA | DC2: CZ | DD2: NH | DE2: GB | DF2: .. | DG2: .. | DH2: .. | DI2: .. | DJ2: .. | DK2: .. | DL2: .. | DM2: .. | DO2: 1 | DP2: 2 | DQ2: 3 | DR2: 4 | DS2: 5 | DT2: 6 | DU2: 7 | DV2: 8 | DW2: 9 | DX2: 10 | DY2: 11 | DZ2: 12 | EA2: 13 | EB2: 14 | EC2: 15 | ED2: 16 | EE2: 17 | EF2: 18 | EG2: 19 | EH2: 20 | EI2: 21 | EJ2: 22 | EK2: 23 | EL2: 24
A3: Invulling | C3: =IF('F1-Manager (invulblad)'!$H$11>0,1," ") ->  | D3: =IF('F1-Manager (invulblad)'!$H$12>0,1," ") ->  | E3: =IF('F1-Manager (invulblad)'!$H$13>0,1," ") ->  | F3: =IF('F1-Manager (invulblad)'!$H$14>0,1," ") ->  | G3: =IF('F1-Manager (invulblad)'!$H$15>0,1," ") ->  | H3: =IF('F1-Manager (invulblad)'!$H$16>0,1," ") ->  | I3: =IF('F1-Manager (invulblad)'!$H$17>0,1," ") ->  | J3: =IF('F1-Manager (invulblad)'!$H$18>0,1," ") ->  | K3: =IF('F1-Manager (invulblad)'!$H$19>0,1," ") ->  | L3: =IF('F1-Manager (invulblad)'!$H$20>0,1," ") ->  | M3: =IF('F1-Manager (invulblad)'!$H$21>0,1," ") ->  | N3: =IF('F1-Manager (invulblad)'!$H$22>0,1," ") ->  | O3: =IF('F1-Manager (invulblad)'!$H$23>0,1," ") ->  | P3: =IF('F1-Manager (invulblad)'!$H$24>0,1," ") ->  | Q3: =IF('F1-Manager (invulblad)'!$H$25>0,1," ") ->  | R3: =IF('F1-Manager (invulblad)'!$H$26>0,1," ") ->  | S3: =IF('F1-Manager (invulblad)'!$H$27>0,1," ") ->  | T3: =IF('F1-Manager (invulblad)'!$H$28>0,1," ") ->  | U3: =IF('F1-Manager (invulblad)'!$H$29>0,1," ") ->  | V3: =IF('F1-Manager (invulblad)'!$H$30>0,1," ") ->  | W3: =IF('F1-Manager (invulblad)'!$H$31>0,1," ") ->  | X3: =IF('F1-Manager (invulblad)'!$H$32>0,1," ") ->  | AF3: =IF('F1-Manager (invulblad)'!$L$11>0,1," ") ->  | AG3: =IF('F1-Manager (invulblad)'!$L$12>0,1," ") ->  | AH3: =IF('F1-Manager (invulblad)'!$L$13>0,1," ") ->  | AI3: =IF('F1-Manager (invulblad)'!$L$14>0,1," ") ->  | AJ3: =IF('F1-Manager (invulblad)'!$L$15>0,1," ") ->  | AK3: =IF('F1-Manager (invulblad)'!$L$16>0,1," ") ->  | AL3: =IF('F1-Manager (invulblad)'!$L$17>0,1," ") ->  | AM3: =IF('F1-Manager (invulblad)'!$L$18>0,1," ") ->  | AN3: =IF('F1-Manager (invulblad)'!$L$19>0,1," ") ->  | AO3: =IF('F1-Manager (invulblad)'!$L$20>0,1," ") ->  | AP3: =IF('F1-Manager (invulblad)'!$L$21>0,1," ") ->  | AQ3: =IF('F1-Manager (invulblad)'!$L$22>0,1," ") ->  | AR3: =IF('F1-Manager (invulblad)'!$L$23>0,1," ") ->  | AS3: =IF('F1-Manager (invulblad)'!$L$24>0,1," ") ->  | AU3: =IF('F1-Manager (invulblad)'!$T$11>0,1," ") ->  | AV3: =IF('F1-Manager (invulblad)'!$T$12>0,1," ") ->  | AW3: =IF('F1-Manager (invulblad)'!$T$13>0,1," ") ->  | AX3: =IF('F1-Manager (invulblad)'!$T$14>0,1," ") ->  | AY3: =IF('F1-Manager (invulblad)'!$T$15>0,1," ") ->  | AZ3: =IF('F1-Manager (invulblad)'!$T$16>0,1," ") ->  | BA3: =IF('F1-Manager (invulblad)'!$T$17>0,1," ") ->  | BB3: =IF('F1-Manager (invulblad)'!$T$18>0,1," ") ->  | BC3: =IF('F1-Manager (invulblad)'!$T$19>0,1," ") ->  | BD3: =IF('F1-Manager (invulblad)'!$T$20>0,1," ") ->  | BE3: =IF('F1-Manager (invulblad)'!$T$21>0,1," ") ->  | BF3: =IF('F1-Manager (invulblad)'!$T$22>0,1," ") ->  | BG3: =IF('F1-Manager (invulblad)'!$T$23>0,1," ") ->  | BH3: =IF('F1-Manager (invulblad)'!$T$24>0,1," ") ->  | BJ3: =IF('F1-Manager (invulblad)'!C88=2,1," ") ->  | BK3: =IF('F1-Manager (invulblad)'!C88=3,1," ") ->  | BL3: =IF('F1-Manager (invulblad)'!C88=4,1," ") ->  | BM3: =IF('F1-Manager (invulblad)'!C88=5,1," ") ->  | BN3: =IF('F1-Manager (invulblad)'!C88=6,1," ") ->  | BO3: =IF('F1-Manager (invulblad)'!C88=7,1," ") ->  | BP3: =IF('F1-Manager (invulblad)'!C88=8,1," ") ->  | BQ3: =IF('F1-Manager (invulblad)'!C97=2,1," ") ->  | BR3: =IF('F1-Manager (invulblad)'!C97=3,1," ") ->  | BS3: =IF('F1-Manager (invulblad)'!C97=4,1," ") ->  | BT3: =IF('F1-Manager (invulblad)'!C97=5,1," ") ->  | BU3: =IF('F1-Manager (invulblad)'!C97=6,1," ") ->  | BV3: =IF('F1-Manager (invulblad)'!C97=7,1," ") ->  | BW3: =IF('F1-Manager (invulblad)'!C97=8,1," ") ->  | BX3: =IF('F1-Manager (invulblad)'!C106=2,1," ") ->  | BY3: =IF('F1-Manager (invulblad)'!C106=3,1," ") ->  | BZ3: =IF('F1-Manager (invulblad)'!C106=4,1," ") ->  | CA3: =IF('F1-Manager (invulblad)'!C106=5,1," ") ->  | CB3: =IF('F1-Manager (invulblad)'!C106=6,1," ") ->  | CC3: =IF('F1-Manager (invulblad)'!C106=7,1," ") ->  | CD3: =IF('F1-Manager (invulblad)'!C106=8,1," ") ->  | CE3: =IF('F1-Manager (invulblad)'!C106=9,1," ") ->  | CF3: =IF('F1-Manager (invulblad)'!C106=10,1," ") ->  | CG3: =IF('F1-Manager (invulblad)'!C106=11,1," ") ->  | CL3: =IF('F1-Manager (invulblad)'!$B$88=2,1," ") ->  | CM3: =IF('F1-Manager (invulblad)'!$B$88=3,1," ") ->  | CN3: =IF('F1-Manager (invulblad)'!$B$88=4,1," ") ->  | CO3: =IF('F1-Manager (invulblad)'!$B$88=5,1," ") ->  | CP3: =IF('F1-Manager (invulblad)'!$B$88=6,1," ") ->  | CQ3: =IF('F1-Manager (invulblad)'!$B$88=7,1," ") ->  | CR3: =IF('F1-Manager (invulblad)'!$B$88=8,1," ") ->  | CS3: =IF('F1-Manager (invulblad)'!$B$88=9,1," ") ->  | CT3: =IF('F1-Manager (invulblad)'!$B$88=10,1," ") ->  | CU3: =IF('F1-Manager (invulblad)'!$B$88=11,1," ") ->  | CV3: =IF('F1-Manager (invulblad)'!$B$88=12,1," ") ->  | CW3: =IF('F1-Manager (invulblad)'!$B$88=13,1," ") ->  | CX3: =IF('F1-Manager (invulblad)'!$B$88=14,1," ") ->  | CY3: =IF('F1-Manager (invulblad)'!$B$88=15,1," ") ->  | CZ3: =IF('F1-Manager (invulblad)'!$B$88=16,1," ") ->  | DA3: =IF('F1-Manager (invulblad)'!$B$88=17,1," ") ->  | DB3: =IF('F1-Manager (invulblad)'!$B$88=18,1," ") ->  | DC3: =IF('F1-Manager (invulblad)'!$B$88=19,1," ") ->  | DD3: =IF('F1-Manager (invulblad)'!$B$88=20,1," ") ->  | DE3: =IF('F1-Manager (invulblad)'!$B$88=21,1," ") ->  | DF3: =IF('F1-Manager (invulblad)'!$B$88=22,1," ") ->  | DG3: =IF('F1-Manager (invulblad)'!$B$88=23,1," ") ->  | DH3: =IF('F1-Manager (invulblad)'!$B$88=24,1," ") ->  | DI3: =IF('F1-Manager (invulblad)'!$B$88=25,1," ") ->  | DJ3: =IF('F1-Manager (invulblad)'!$B$88=26,1," ") ->  | DK3: =IF('F1-Manager (invulblad)'!$B$88=27,1," ") ->  | DL3: =IF('F1-Manager (invulblad)'!$B$88=28,1," ") ->  | DM3: =IF('F1-Manager (invulblad)'!$B$88=29,1," ") ->  | DO3: =IF('F1-Manager (invulblad)'!$J$88=2,1," ") ->  | DP3: =IF('F1-Manager (invulblad)'!$J$88=3,1," ") ->  | DQ3: =IF('F1-Manager (invulblad)'!$J$88=4,1," ") ->  | DR3: =IF('F1-Manager (invulblad)'!$J$88=5,1," ") ->  | DS3: =IF('F1-Manager (invulblad)'!$J$88=6,1," ") ->  | DT3: =IF('F1-Manager (invulblad)'!$J$88=7,1," ") ->  | DU3: =IF('F1-Manager (invulblad)'!$J$88=8,1," ") ->  | DV3: =IF('F1-Manager (invulblad)'!$J$88=9,1," ") ->  | DW3: =IF('F1-Manager (invulblad)'!$J$88=10,1," ") ->  | DX3: =IF('F1-Manager (invulblad)'!$J$88=11,1," ") ->  | DY3: =IF('F1-Manager (invulblad)'!$J$88=12,1," ") ->  | DZ3: =IF('F1-Manager (invulblad)'!$J$88=13,1," ") ->  | EA3: =IF('F1-Manager (invulblad)'!$J$88=14,1," ") ->  | EB3: =IF('F1-Manager (invulblad)'!$J$88=15,1," ") ->  | EC3: =IF('F1-Manager (invulblad)'!$J$88=16,1," ") ->  | ED3: =IF('F1-Manager (invulblad)'!$J$88=17,1," ") ->  | EE3: =IF('F1-Manager (invulblad)'!$J$88=18,1," ") ->  | EF3: =IF('F1-Manager (invulblad)'!$J$88=19,1," ") ->  | EG3: =IF('F1-Manager (invulblad)'!$J$88=20,1," ") ->  | EH3: =IF('F1-Manager (invulblad)'!$J$88=21,1," ") ->  | EI3: =IF('F1-Manager (invulblad)'!$J$88=22,1," ") ->  | EJ3: =IF('F1-Manager (invulblad)'!$J$88=23,1," ") ->  | EK3: =IF('F1-Manager (invulblad)'!$J$88=24,1," ") ->  | EL3: =IF('F1-Manager (invulblad)'!$J$88=25,1," ") ->  | EQ3: ='F1-Manager (invulblad)'!T4 -> € 80,000,000

Sheet Waardebepaling (hidden)
C1: 1 | D1: 2 | E1: 3 | F1: 4 | G1: 5 | H1: 6 | I1: 7 | J1: 8 | K1: 9 | L1: 10 | M1: 11 | N1: 12 | O1: 13 | P1: 14 | Q1: 15 | R1: 16 | S1: 17 | T1: 18 | U1: 19 | V1: 20 | W1: 21 | X1: 22 | Y1: 23 | Z1: 24
A2: Max Verstappen | B2: =20000000+SUM(C2:Z2)*100000 -> € 35,300,000 | C2: 9 | D2: 9 | E2: -9 | F2: 9 | G2: 9 | H2: 8 | I2: 9 | J2: 4 | K2: 9 | L2: 9 | M2: 5 | N2: 8 | O2: 5 | P2: 6 | Q2: 8 | R2: 4 | S2: 5 | T2: 8 | U2: 7 | V2: 4 | W2: 9 | X2: 5 | Y2: 9 | Z2: 4 | AA2: € 35,300,000 | AB2: =42/35.3 -> 1.19 | AC2: =AA2*AB2 -> € 42,000,000 | AD2: =AE2*1000000 -> € 42,000,000 | AE2: € 42
A3: Sergio Perez | B3: € 20,900,000 | C3: 8 | D3: 8 | E3: 5 | F3: 8 | G3: 7 | H3: 6 | I3: 2 | J3: -8 | K3: -8 | L3: 2 | M3: 3 | N3: -7 | O3: 3 | P3: 3 | Q3: 4 | R3: 2 | S3: -7 | T3: 0 | U3: 3 | V3: -7 | W3: -1 | X3: 0 | Y3: -7 | Z3: -10 | AA3: € 20,900,000 | AB3: =42/35.3 -> 1.19 | AC3: =AA3*AB3 -> € 24,866,856 | AD3: =AE3*1000000 -> € 25,000,000 | AE3: € 25
A4: Lewis Hamilton | B4: € 27,300,000 | C4: 3 | D4: 1 | E4: -8 | F4: 1 | G4: 1 | H4: 4 | I4: 4 | J4: 3 | K4: 6 | L4: 7 | M4: 6 | N4: 9 | O4: 7 | P4: 9 | Q4: 2 | R4: 5 | S4: 1 | T4: 4 | U4: -10 | V4: 6 | W4: 0 | X4: 8 | Y4: -2 | Z4: 6 | AA4: € 27,300,000 | AB4: 1.19 | AC4: € 32,481,586 | AD4: € 33,000,000 | AE4: € 33
A5: George Russell | B5: € 27,800,000 | C5: 5 | D5: 4 | E5: -7 | F5: 3 | G5: 4 | H5: 2 | I5: 3 | J5: 5 | K5: 7 | L5: 6 | M5: 9 | N5: -9 | O5: 2 | P5: -10 | Q5: 3 | R5: 3 | S5: 7 | T5: 6 | U5: 4 | V5: 5 | W5: 6 | X5: 9 | Y5: 6 | Z5: 5 | AA5: € 27,800,000 | AB5: 1.19 | AC5: € 33,076,487 | AD5: € 33,000,000 | AE5: € 33
A6: Charles Leclerc | B6: € 33,100,000 | C6: 6 | D6: 7 | E6: 8 | F6: 6 | G6: 6 | H6: 7 | I6: 7 | J6: 9 | K6: -9 | L6: 5 | M6: -1 | N6: -4 | O6: 6 | P6: 7 | Q6: 7 | R6: 9 | S6: 8 | T6: 5 | U6: 9 | V6: 7 | W6: 5 | X6: 6 | Y6: 8 | Z6: 7 | AA6: € 33,100,000 | AB6: 1.19 | AC6: € 39,382,436 | AD6: € 39,000,000 | AE6: € 39
A7: Carlos Sainz Jr. | B7: € 30,200,000 | C7: 7 | D7: 3 | E7: 9 | F7: 7 | G7: 5 | H7: 5 | I7: 5 | J7: 7 | K7: -6 | L7: 4 | M7: 7 | N7: 5 | O7: 4 | P7: 4 | Q7: 5 | R7: 6 | S7: -8 | T7: 3 | U7: 8 | V7: 9 | W7: -6 | X7: 7 | Y7: 4 | Z7: 8 | AA7: € 30,200,000 | AB7: 1.19 | AC7: € 35,932,011 | AD7: € 36,000,000 | AE7: € 36
A8: Lando Norris | B8: € 33,700,000 | C8: 4 | D8: 2 | E8: 7 | F8: 5 | G8: 8 | H8: 9 | I8: 8 | J8: 6 | K8: 8 | L8: 8 | M8: -10 | N8: 7 | O8: 8 | P8: 5 | Q8: 9 | R8: 7 | S8: 6 | T8: 9 | U8: 6 | V8: 8 | W8: 4 | X8: 4 | Y8: 0 | Z8: 9 | AA8: € 33,700,000 | AB8: 1.19 | AC8: € 40,096,317 | AD8: € 40,000,000 | AE8: € 40
A9: Oscar Piastri | B9: € 31,700,000 | C9: 2 | D9: 6 | E9: 6 | F9: 2 | G9: 2 | H9: -3 | I9: 6 | J9: 8 | K9: 5 | L9: 3 | M9: 8 | N9: 6 | O9: 9 | P9: 8 | Q9: 6 | R9: 8 | S9: 9 | T9: 7 | U9: 5 | V9: 2 | W9: 2 | X9: 3 | Y9: 7 | Z9: 0 | AA9: € 31,700,000 | AB9: 1.19 | AC9: € 37,716,714 | AD9: € 38,000,000 | AE9: € 38
A10: Lance Stroll | B10: € 11,900,000 | C10: 0 | D10: -9 | E10: 4 | F10: -2 | G10: -5 | H10: -7 | I10: 1 | J10: -4 | K10: 3 | L10: -4 | M10: -3 | N10: 3 | O10: 0 | P10: -1 | Q10: -3 | R10: -9 | S10: -9 | T10: -4 | U10: -5 | V10: -1 | W10: -9 | X10: -5 | Y10: -8 | Z10: -4 | AA10: € 11,900,000 | AB10: 1.19 | AC10: € 14,158,640 | AD10: € 14,000,000 | AE10: € 14
A11: Fernando Alonso | B11: € 19,600,000 | C11: 1 | D11: 5 | E11: 2 | F11: 4 | G11: 3 | H11: 1 | I11: -9 | J11: -1 | K11: 4 | L11: -2 | M11: -8 | N11: 2 | O11: -1 | P11: 2 | Q11: 0 | R11: -1 | S11: 4 | T11: 2 | U11: -3 | V11: -8 | W11: -4 | X11: -1 | Y11: 3 | Z11: 1 | AA11: € 19,600,000 | AB11: 1.19 | AC11: € 23,320,113 | AD11: € 23,000,000 | AE11: € 23
A12: Esteban Ocon | B12: € 11,000,000 | C12: -7 | D12: -3 | E12: -6 | F12: -5 | G12: -1 | H12: 0 | I12: -4 | J12: -7 | K12: 0 | L12: 0 | M12: -2 | N12: -6 | O12: -8 | P12: 1 | Q12: -5 | R12: -4 | S12: -5 | T12: -3 | U12: -8 | V12: -3 | W12: 8 | X12: -7 | Y12: -10 | Z12: -5 | AA12: € 11,000,000 | AB12: 1.19 | AC12: € 13,087,819 | AD12: € 13,000,000 | AE12: € 13
A13: Pierre Gasly | B13: € 13,100,000 | C13: -8 | D13: -10 | E13: -3 | F13: -6 | G13: -3 | H13: -2 | I13: -6 | J13: 0 | K13: 1 | L13: 1 | M13: 0 | N13: -10 | O13: -10 | P13: -3 | Q13: 1 | R13: -5 | S13: -2 | T13: -7 | U13: -2 | V13: 0 | W13: 7 | X13: -10 | Y13: 5 | Z13: 3 | AA13: € 13,100,000 | AB13: 1.19 | AC13: € 15,586,402 | AD13: € 16,000,000 | AE13: € 16
A14: Alexander Albon | B14: € 9,100,000 | C14: -5 | D14: -1 | E14: -1 | F14: -10 | G14: -2 | H14: -8 | I14: -10 | J14: 1 | K14: -7 | L14: -8 | M14: -5 | N14: 1 | O14: -4 | P14: -2 | Q14: -4 | R14: 1 | S14: 3 | T14: -10 | U14: -6 | V14: -9 | W14: -8 | X14: -9 | Y14: -5 | Z14: -1 | AA14: € 9,100,000 | AB14: 1.19 | AC14: € 10,827,195 | AD14: € 11,000,000 | AE14: € 11
A15: Logan Sargeant | B15: € 5,800,000 | C15: -10 | D15: -4 | E15: -10 | F15: -7 | G15: -7 | H15: -10 | I15: -7 | J15: -5 | K15: -10 | L15: -10 | M15: -9 | N15: -1 | O15: -7 | P15: -7 | Q15: -6 | R15: -2 | S15: 2 | T15: -1 | U15: 0 | V15: -2 | W15: -7 | X15: -4 | Y15: -9 | Z15: -9 | AA15: € 5,800,000 | AB15: 1.19 | AC15: € 6,900,850 | AD15: € 7,000,000 | AE15: € 7
A16: Daniel Ricciardo | B16: € 11,800,000 | C16: -3 | D16: -6 | E16: -2 | F16: -9 | G16: -8 | H16: -5 | I16: -3 | J16: -2 | K16: 2 | L16: -5 | M16: 1 | N16: -3 | O16: -2 | P16: 0 | Q16: -2 | R16: -3 | S16: -3 | T16: -8 | U16: 1 | V16: -6 | W16: 1 | X16: -6 | Y16: -4 | Z16: -7 | AA16: € 11,800,000 | AB16: 1.19 | AC16: € 14,039,660 | AD16: € 14,000,000 | AE16: € 14
A17: Yuki Tsunoda | B17: € 12,400,000 | C17: -4 | D17: -5 | E17: 3 | F17: 0 | G17: -9 | H17: 3 | I17: 0 | J17: 2 | K17: -4 | L17: -9 | M17: -4 | N17: 0 | O17: 1 | P17: -6 | Q17: -7 | R17: -10 | S17: -10 | T17: -2 | U17: -4 | V17: -10 | W17: 3 | X17: 1 | Y17: -3 | Z17: -2 | AA17: € 12,400,000 | AB17: 1.19 | AC17: € 14,753,541 | AD17: € 15,000,000 | AE17: € 15
A18: Valtteri Botas | B18: € 6,000,000 | C18: -9 | D18: -7 | E18: -4 | F18: -4 | G18: -10 | H18: -6 | I18: -8 | J18: -3 | K18: -3 | L18: -6 | M18: -6 | N18: -5 | O18: -6 | P18: -5 | Q18: -9 | R18: -6 | S18: -6 | T18: -6 | U18: -7 | V18: -4 | W18: -3 | X18: -8 | Y18: -1 | Z18: -8 | AA18: € 6,000,000 | AB18: 1.19 | AC18: € 7,138,810 | AD18: € 7,000,000 | AE18: € 7
A19: Guanyu Zhou | B19: € 6,800,000 | C19: -1 | D19: -8 | E19: -5 | F19: -8 | G19: -4 | H19: -4 | I19: -5 | J19: -6 | K19: -5 | L19: -3 | M19: -7 | N19: -8 | O19: -9 | P19: -9 | Q19: -10 | R19: -8 | S19: -4 | T19: -5 | U19: -9 | V19: -5 | W19: -5 | X19: -3 | Y19: 2 | Z19: -3 | AA19: € 6,800,000 | AB19: 1.19 | AC19: € 8,090,652 | AD19: € 8,000,000 | AE19: € 8
A20: Nico Hülkenberg | B20: € 16,100,000 | C20: -6 | D20: 0 | E20: 1 | F20: -1 | G20: 0 | H20: -1 | I20: -1 | J20: -9 | K20: -1 | L20: -1 | M20: 4 | N20: 4 | O20: -3 | P20: -8 | Q20: -1 | R20: -7 | S20: -1 | T20: 1 | U20: 2 | V20: 1 | W20: -10 | X20: 2 | Y20: -6 | Z20: 2 | AA20: € 16,100,000 | AB20: 1.19 | AC20: € 19,155,807 | AD20: € 19,000,000 | AE20: € 19
A21: Kevin Magnussen | B21: € 12,400,000 | C21: -2 | D21: -2 | E21: 0 | F21: -3 | G21: -6 | H21: -9 | I21: -2 | J21: -10 | K21: -2 | L21: -7 | M21: 2 | N21: -2 | O21: -5 | P21: -4 | Q21: -8 | R21: 0 | S21: 0 | T21: -9 | U21: -1 | V21: 3 | W21: -2 | X21: -2 | Y21: 1 | Z21: -6 | AA21: € 12,400,000 | AB21: 1.19 | AC21: € 14,753,541 | AD21: € 15,000,000 | AE21: € 15
C22: =SUM(C2:C21) -> -10 | D22: =SUM(D2:D21) -> -10 | E22: -10 | F22: -10 | G22: -10 | H22: -10 | I22: -10 | J22: -10 | K22: -10 | L22: -10 | M22: -10 | N22: -10 | O22: -10 | P22: -10 | Q22: -10 | R22: -10 | S22: -10 | T22: -10 | U22: -10 | V22: -10 | W22: -10 | X22: -10 | Y22: -10 | Z22: -10
A24: RED BULL _ Chassis | B24: =20000000+SUM(C24:Z24)*100000 -> € 36,200,000 | C24: =SUM(C2:C3) -> 17 | D24: =SUM(D2:D3) -> 17 | E24: -4 | F24: 17 | G24: 16 | H24: 14 | I24: 11 | J24: -4 | K24: 1 | L24: 11 | M24: 8 | N24: 1 | O24: 8 | P24: 9 | Q24: 12 | R24: 6 | S24: -2 | T24: 8 | U24: 10 | V24: -3 | W24: 8 | X24: 5 | Y24: 2 | Z24: =SUM(Z2:Z3) -> -6 | AA24: € 36,200,000 | AB24: =28/45.4 -> 0.62 | AC24: =AB24*AA24 -> € 22,325,991 | AD24: =AE24*1000000 -> € 22,000,000 | AE24: 22
A25: MERCEDES _ Chassis | B25: € 35,100,000 | C25: =SUM(C4:C5) -> 8 | D25: =SUM(D4:D5) -> 5 | E25: -15 | F25: 4 | G25: 5 | H25: 6 | I25: 7 | J25: 8 | K25: 13 | L25: 13 | M25: 15 | N25: 0 | O25: 9 | P25: -1 | Q25: 5 | R25: 8 | S25: 8 | T25: 10 | U25: -6 | V25: 11 | W25: 6 | X25: 17 | Y25: 4 | Z25: =SUM(Z4:Z5) -> 11 | AA25: € 35,100,000 | AB25: =28/45.4 -> 0.62 | AC25: =AB25*AA25 -> € 21,647,577 | AD25: € 22,000,000 | AE25: 22
A26: FERRARI _ Chassis | B26: € 43,300,000 | C26: =SUM(C6:C7) -> 13 | D26: =SUM(D6:D7) -> 10 | E26: 17 | F26: 13 | G26: 11 | H26: 12 | I26: 12 | J26: 16 | K26: -15 | L26: 9 | M26: 6 | N26: 1 | O26: 10 | P26: 11 | Q26: 12 | R26: 15 | S26: 0 | T26: 8 | U26: 17 | V26: 16 | W26: -1 | X26: 13 | Y26: 12 | Z26: =SUM(Z6:Z7) -> 15 | AA26: € 43,300,000 | AB26: 0.62 | AC26: € 26,704,846 | AD26: € 27,000,000 | AE26: 27
A27: MCLAREN _ Chassis | B27: € 45,400,000 | C27: =SUM(C8:C9) -> 6 | D27: =SUM(D8:D9) -> 8 | E27: 13 | F27: 7 | G27: 10 | H27: 6 | I27: 14 | J27: 14 | K27: 13 | L27: 11 | M27: -2 | N27: 13 | O27: 17 | P27: 13 | Q27: 15 | R27: 15 | S27: 15 | T27: 16 | U27: 11 | V27: 10 | W27: 6 | X27: 7 | Y27: 7 | Z27: =SUM(Z8:Z9) -> 9 | AA27: € 45,400,000 | AB27: 0.62 | AC27: € 28,000,000 | AD27: € 28,000,000 | AE27: 28
A28: ASTON _ Chassis | B28: € 11,500,000 | C28: =SUM(C10:C11) -> 1 | D28: =SUM(D10:D11) -> -4 | E28: 6 | F28: 2 | G28: -2 | H28: -6 | I28: -8 | J28: -5 | K28: 7 | L28: -6 | M28: -11 | N28: 5 | O28: -1 | P28: 1 | Q28: -3 | R28: -10 | S28: -5 | T28: -2 | U28: -8 | V28: -9 | W28: -13 | X28: -6 | Y28: -5 | Z28: =SUM(Z10:Z11) -> -3 | AA28: € 11,500,000 | AB28: 0.62 | AC28: € 7,092,511 | AD28: € 19,000,000 | AE28: =AE39+7 -> 19
A29: ALPINE _ Chassis | B29: € 4,100,000 | C29: =SUM(C12:C13) -> -15 | D29: =SUM(D12:D13) -> -13 | E29: -9 | F29: -11 | G29: -4 | H29: -2 | I29: -10 | J29: -7 | K29: 1 | L29: 1 | M29: -2 | N29: -16 | O29: -18 | P29: -2 | Q29: -4 | R29: -9 | S29: -7 | T29: -10 | U29: -10 | V29: -3 | W29: 15 | X29: -17 | Y29: -5 | Z29: =SUM(Z12:Z13) -> -2 | AA29: € 4,100,000 | AB29: 0.62 | AC29: € 2,528,634 | AD29: € 15,000,000 | AE29: =12+3 -> 15
A30: WILLIAMS _ Chassis | B30: € -5,100,000 | C30: =SUM(C14:C15) -> -15 | D30: =SUM(D14:D15) -> -5 | E30: -11 | F30: -17 | G30: -9 | H30: -18 | I30: -17 | J30: -4 | K30: -17 | L30: -18 | M30: -14 | N30: 0 | O30: -11 | P30: -9 | Q30: -10 | R30: -1 | S30: 5 | T30: -11 | U30: -6 | V30: -11 | W30: -15 | X30: -13 | Y30: -14 | Z30: =SUM(Z14:Z15) -> -10 | AA30: € -5,100,000 | AB30: 0.62 | AC30: € -3,145,374 | AD30: € 9,000,000 | AE30: 9
A31: VISA CASH APP RB_ Chassis | B31: € 4,200,000 | C31: =SUM(C16:C17) -> -7 | D31: =SUM(D16:D17) -> -11 | E31: 1 | F31: -9 | G31: -17 | H31: -2 | I31: -3 | J31: 0 | K31: -2 | L31: -14 | M31: -3 | N31: -3 | O31: -1 | P31: -6 | Q31: -9 | R31: -13 | S31: -13 | T31: -10 | U31: -3 | V31: -16 | W31: 4 | X31: -5 | Y31: -7 | Z31: =SUM(Z16:Z17) -> -9 | AA31: € 4,200,000 | AB31: 0.62 | AC31: € 2,590,308 | AD31: € 15,000,000 | AE31: =12+3 -> 15
A32: STAKE F1 TEAM_ Chassis | B32: € -7,200,000 | C32: =SUM(C18:C19) -> -10 | D32: =SUM(D18:D19) -> -15 | E32: -9 | F32: -12 | G32: -14 | H32: -10 | I32: -13 | J32: -9 | K32: -8 | L32: -9 | M32: -13 | N32: -13 | O32: -15 | P32: -14 | Q32: -19 | R32: -14 | S32: -10 | T32: -11 | U32: -16 | V32: -9 | W32: -8 | X32: -11 | Y32: 1 | Z32: =SUM(Z18:Z19) -> -11 | AA32: € -7,200,000 | AB32: 0.62 | AC32: € -4,440,529 | AD32: € 8,000,000 | AE32: 8
A33: HAAS _ Chassis | B33: € 8,500,000 | C33: =SUM(C20:C21) -> -8 | D33: =SUM(D20:D21) -> -2 | E33: 1 | F33: -4 | G33: -6 | H33: -10 | I33: -3 | J33: -19 | K33: -3 | L33: -8 | M33: 6 | N33: 2 | O33: -8 | P33: -12 | Q33: -9 | R33: -7 | S33: -1 | T33: -8 | U33: 1 | V33: 4 | W33: -12 | X33: 0 | Y33: -5 | Z33: =SUM(Z20:Z21) -> -4 | AA33: € 8,500,000 | AB33: 0.62 | AC33: € 5,242,291 | AD33: € 17,000,000 | AE33: =12+5 -> 17
AB34: coureurs | AD34: teams
B35: 10 is 0 , nummer 1 is 9 punten, nummer 20 = -10 punten | AA35: <15 | AB35: 0
AA36: 15-20 | AB36: € 1 | AD36: € 7
AA37: 21-25 | AB37: € 2
AA38: 25-34 | AB38: =3 -> € 3
AD39: € 12,000,000 | AE39: =AD39/1000000 -> 12
AA41: RED BULL _ Chassis | AB41: RB | AD41: € 28,000,000
AA42: MERCEDES _ Chassis | AB42: MGP | AD42: € 25,000,000
AA43: FERRARI _ Chassis | AB43: SF | AD43: € 25,000,000
AA44: MCLAREN _ Chassis | AB44: McL | AD44: € 20,000,000
AA45: ASTON _ Chassis | AB45: AsM | AD45: € 21,000,000
AA46: ALPINE _ Chassis | AB46: ALP | AD46: € 15,000,000
AA47: WILLIAMS _ Chassis | AB47: WIL | AD47: € 10,000,000
AA48: VISA CASH APP RB_ Chassis | AB48: VCA | AD48: € 12,000,000
AA49: STAKE F1 TEAM_ Chassis | AB49: SAU | AD49: € 10,000,000
AA50: HAAS _ Chassis | AB50: HAA | AD50: € 8,000,000
